Cogmind - Beta 15 @@@ ROGUE MODE // 2025.06.14 @ 03:09:08 Player: Carbonated Result: Destroyed by Y-45 Defender with Beam Rifle Performance ------------- Evolutions (2) 1000 Regions Visited (3) 600 Robots Destroyed (75) 375 Value Destroyed (1896) 1896 Prototype IDs (1) 20 Alien Tech Used (0) 0 Bonus (0) 0 TOTAL SCORE: 3891 Bonus ------- None Cogmind --------- Core Integrity 0/550 Matter 65/300 Energy 100/100 System Corruption 2% Temperature Cool (9) Movement Core (350) Ox6 Location -8/Materials Parts ------- > --- POWER (1) -------- (None) > --- PROPULSION (3) --- (None) > --- UTILITY (3) ------ Large Storage Unit > --- WEAPON (4) ------- (None) > --- INVENTORY (15) --- Improved Ion Engine Aluminum Leg Aluminum Leg Light Assault Rifle Light Assault Rifle Heavy Assault Rifle Peak State ------------ > --- POWER ------------ Light Nuclear Core > --- PROPULSION ------- Aluminum Leg Aluminum Leg Aluminum Leg > --- UTILITY ---------- Large Storage Unit Seismic Detector Light Armor Plating > --- WEAPON ----------- Heavy Assault Rifle Missile Launcher Missile Launcher Flail > --- INVENTORY -------- Improved Ion Engine Light Deuterium Engine Aluminum Leg Aluminum Leg Aluminum Leg Aluminum Leg Aluminum Leg Light Assault Rifle Light Assault Rifle Heavy Assault Rifle Missile Launcher Missile Launcher [Rating: 21] Favorites ----------- Power Light Ion Engine Engine Light Ion Engine Power Core Light Nuclear Core Propulsion Aluminum Leg Treads Light Treads Leg Aluminum Leg Utility Large Storage Unit Device Seismic Detector Storage Large Storage Unit Processor Visual Processing Unit Protection Backup Plating I Weapon Assault Rifle Energy Gun Improved Medium Laser Ballistic Gun Assault Rifle Ballistic Cannon Light Cannon Launcher Missile Launcher Impact Weapon Flail Build | -11 -10 -9 -8 ------- Run | Yrd Mat Mat Mat Slots Evolved 4 | . . 2 2 Power . | . . . . Propulsion 1 | . . 1 . Utility 1 | . . . 1 Weapon 2 | . . 1 1 Parts Attached 40 | 6 7 19 8 Power 5 | 1 1 2 1 Engine 4 | 1 1 1 1 Core 1 | . . 1 . Reactor . | . . . . Propulsion 11 | 2 2 4 3 Treads 2 | 2 . . . Leg 9 | . 2 4 3 Wheel . | . . . . Hover . | . . . . Flight . | . . . . Utility 8 | 1 4 2 1 Device 1 | . 1 . . Storage 2 | 1 1 . . Processor 1 | . 1 . . Hackware . | . . . . Protection 4 | . 1 2 1 Artifact . | . . . . Weapon 16 | 2 . 11 3 Energy Gun 1 | . . 1 . Energy Cannon . | . . . . Ballistic Gun 8 | 2 . 6 . Ballistic Cannon 1 | . . 1 . Launcher 4 | . . 2 2 Special Weapon . | . . . . Impact Weapon 2 | . . 1 1 Slashing Weapon . | . . . . Piercing Weapon . | . . . . Special Melee Weapon . | . . . . Unidentified Prototypes 1 | . . 1 . Parts Lost 28 | . 2 10 16 Power 3 | . . 1 2 Propulsion 10 | . 2 2 6 Utility 4 | . . 2 2 Weapon 11 | . . 5 6 Highest Loss Streak 9 | . 2 3 9 To Critical Strikes 1 | . . . 1 Average Backups 9 | 1 5 11 11 Power 2 | . 1 2 1 Propulsion 1 | . . 2 4 Utility 1 | . . 1 . Weapon 4 | . 2 5 4 Tool/Special . | . . . . Unused Backups 25 | . 5 16 4 Power 6 | . 2 3 1 Propulsion 6 | . . 4 2 Utility 4 | . 1 3 . Weapon 8 | . 1 6 1 Tool/Special 1 | . 1 . . Average Slot Usage (%) 94 | . 96 97 71 Engine 8 | . 14 7 . Core 2 | . . 3 6 Treads 3 | . 11 . . Leg 26 | . 15 31 20 Device 5 | . 3 6 4 Storage 11 | . 14 11 9 Processor 1 | . 6 . . Protection 3 | . 1 3 3 Ballistic Gun 24 | . 28 24 7 Ballistic Cannon 1 | . . 3 . Launcher 2 | . . 3 9 Impact Weapon 1 | . . 1 8 Peak Build Rating 21 | 6 8 17 21 Average Rating 11 | 4 7 12 15 On Entrance 7 | . 6 7 17 Naked Turns . | . . . . Heaviest Build 48 | 12 30 38 48 Greatest Support 40 | 40 40 30 30 Greatest Overweight (x) 7 | . 3 3 7 Average Overweight (x) . | . . . 1 Largest Inventory Capacity 15 | 8 15 15 15 Average Capacity 13 | 6 10 15 15 Most Carried 15 | 5 8 15 14 Average Carried 9 | 2 5 11 11 Final Capacity 15 | 8 15 15 15 Final Carried 13 | 2 5 13 6 Class Distribution -------------------- 45% | Mutant 29% | Gunner 11% | Tank 9% | Scavenger-Tank Dominant Class ---------------- Mutant | -10/Materials Gunner | -9/Materials Mutant | -8/Materials Resources | -11 -10 -9 -8 ----------- Run | Yrd Mat Mat Mat Matter Collected 1642 | 78 419 993 152 Remotely . | . . . . Salvage Created 2006 | . 352 1187 467 Parts 126 | . 27 73 26 Haulers Intercepted . | . . . . Recyclers Shooed 4 | . 1 2 1 Parts Field Recycled . | . . . . Retrieved Matter . | . . . . Parts Self-Destructed . | . . . . Prevented . | . . . . Kills | -11 -10 -9 -8 ------- Run | Yrd Mat Mat Mat Combat Hostiles Destroyed 52 | . 11 28 13 Melee 1 | . . . 1 Guns 27 | . 11 16 . Cannons 7 | . . 7 . AOE 17 | . . 5 12 Classes Destroyed 8 | . 4 4 . Worker 5 | . . 1 4 Builder 8 | . . 4 4 Recycler 5 | . 1 2 2 Operator 1 | . . 1 . Watcher 4 | . 1 2 1 Swarmer 13 | . 6 3 4 Grunt 29 | . 5 16 8 Sentry 10 | . . 9 1 Best Kill Streak 13 | . 4 4 13 Combat Bots Only 7 | . 3 3 7 Max Kills in Single Turn 4 | . 2 3 4 Gunslinging 1 | . 1 . . Exploded 4 | . . 2 4 Melee 1 | . . . 1 Uniques/NPCs Destroyed . | . . . . Combat | -11 -10 -9 -8 -------- Run | Yrd Mat Mat Mat Hostile Shots Fired 411 | . 89 159 163 Missed 121 | . 25 52 44 Hits 290 | . 64 107 119 Projectile 290 | . 64 107 119 Critical Strikes 13 | . 1 5 7 Damage Taken 3829 | . 725 1316 1788 Core 948 | . 188 203 557 Absorbed by Shields . | . . . . Regen/Repaired (Parts) 32 | . . 32 . Core Remaining (%) 57 | 100 24 49 . Volleys Fired 148 | . 51 81 16 Largest 3 | . 2 3 3 Hottest 95 | . 40 82 95 Shots Fired 343 | . 102 206 35 Gun 268 | . 102 152 14 Cannon 39 | . . 39 . Launcher 36 | . . 15 21 Special . | . . . . Kinetic 307 | . 102 191 14 Thermal . | . . . . Explosive 36 | . . 15 21 Electromagnetic . | . . . . Robot Hit Streak 24 | . 14 24 4 Robot Miss Streak 5 | . 4 5 4 Penetration Max . | . . . . Secondary Targets 2 | . 1 1 . Max Gunslinging Chain 1 | . 1 1 . Shots Hit Robots 224 | . 67 135 22 Core Hits 129 | . 22 63 44 Critical Kills 1 | . . 1 . Critical Parts Destroyed 5 | . 1 2 2 Critical Strikes 8 | . 1 5 2 Destroy 3 | . 1 2 . Blast 2 | . . 2 . Smash 3 | . . 1 2 Melee Attacks 11 | . . 3 8 Impact 11 | . . 3 8 Slashing . | . . . . Piercing . | . . . . Sneak Attacks 6 | . . 2 4 Combat Hostiles . | . . . . Follow-up Attacks . | . . . . Damage Inflicted 5893 | . 820 2711 2362 Guns 2236 | . 811 1302 123 Cannons 395 | . . 395 . Explosions 2609 | . . 753 1856 Melee 549 | . . 167 382 Ramming 104 | . 9 94 1 Kinetic 2631 | . 811 1697 123 Thermal . | . . . . Explosive 2609 | . . 753 1856 Electromagnetic . | . . . . Impact 549 | . . 167 382 Slashing . | . . . . Piercing . | . . . . Highest Corruption 2 | . . . 2 Average Corruption 2 | . . . 2 Corruption Purged . | . . . . Corruption Blocked . | . . . . Overload Shots . | . . . . Overflow Damage 343 | . . 43 300 Projectiles 6 | . . 6 . Explosions 36 | . . 7 29 Melee 301 | . . 30 271 Knockbacks 4 | . . 4 . Impact . | . . . . Kinetic 4 | . . 4 . Secondary . | . . . . Self-Inflicted Damage 41 | . . . 41 Shots 1 | . . . 1 Rammed 2 | . . . 2 Targets Rammed 21 | . 5 14 2 Kicked 19 | . 5 14 . Crushed . | . . . . Highest Temperature 119 | . 20 119 113 Average Temperature 27 | . 3 22 53 Received Heat Transfer 1749 | . 345 621 783 Siege Activations . | . . . . Martial Activations . | . . . . Shielding Activations . | . . . . Robots Disrupted . | . . . . Combat Hostiles . | . . . . Robots Corrupted 2 | . . 2 . Combat Hostiles . | . . . . Parts Fried 3 | . . 1 2 Impact Corruptions 10 | . . 2 8 Robots Melted . | . . . . Combat Hostiles . | . . . . Parts Melted . | . . . . Heat Transferred . | . . . . Parts Sabotaged . | . . . . Parts Stolen . | . . . . Parts Stripped . | . . . . Power Chain Reactions . | . . . . Alert | -11 -10 -9 -8 ------- Run | Yrd Mat Mat Mat Maximum Alert Level 1 | . . 1 1 Low Security (%) 91 | 100 100 88 84 Level 1 8 | . . 11 15 Level 2 . | . . . . Level 3 . | . . . . Level 4 . | . . . . Level 5 . | . . . . High Security . | . . . . Max Security . | . . . . Peak Influence 279 | . 89 269 279 Initial 109 | . . 11 109 Average 66 | . 18 80 133 Influence Increases 1691 | . 303 953 435 Destroy 0b10 Robot/C 1040 | . 220 560 260 Destroy 0b10 Robot/NC 115 | . 10 50 55 Destroy Leader 248 | . 52 154 42 Successful Hack 10 | . 4 6 . Disable Machine 30 | . . 30 . Destroy Structure 143 | . 2 63 78 Lose Combat Pursuer 105 | . 15 90 . Influence Decreases 1505 | . 274 722 509 Entered New Map 169 | . . 18 151 Time Decay 1076 | . 254 624 198 Lost Part 260 | . 20 80 160 Squads Dispatched 7 | . 2 4 1 Investigation 3 | . 1 2 . Extermination . | . . . . Reinforcement 4 | . 1 2 1 Assault . | . . . . Garrison . | . . . . Intercept . | . . . . Searches Triggered . | . . . . Construction Impeded 1 | . . . 1 Haulers Reinforced . | . . . . Active Scanning Responses . | . . . . Cargo Convoy Interrupts . | . . . . Stealth | -11 -10 -9 -8 --------- Run | Yrd Mat Mat Mat Distress Signals 10 | . 4 4 2 Communications Jammed . | . . . . Distress Signals . | . . . . Times Spotted 79 | . 22 39 18 Peak Tracking Total 10 | . 4 5 10 Tactical Retreats 7 | . 1 6 . Traps | -11 -10 -9 -8 ------- Run | Yrd Mat Mat Mat Traps Triggered 2 | . 1 1 . Indirectly . | . . . . Trap Hack Attempts . | . . . . Triggered . | . . . . Disarmed . | . . . . Reprogrammed . | . . . . Reused . | . . . . Traps Extracted . | . . . . Installed . | . . . . Triggered . | . . . . Machines | -11 -10 -9 -8 ---------- Run | Yrd Mat Mat Mat Machines Disabled 2 | . . 2 . Max in Single Turn 1 | . . 1 . Machines Repaired . | . . . . Machines Dismantled . | . . . . Machines Sabotaged . | . . . . Overloaded Fab Kills . | . . . . Hacking | -11 -10 -9 -8 --------- Run | Yrd Mat Mat Mat Machines Accessed 14 | . 7 6 1 Terminals 9 | . 4 4 1 Fabricators . | . . . . Repair Stations 2 | . 1 1 . Recycling Units 3 | . 2 1 . Scanalyzers . | . . . . Garrison Access . | . . . . Total Hacks 34 | . 17 16 1 Successful 18 | . 7 10 1 Failed 16 | . 10 6 . Catastrophic 4 | . 2 2 . Database Lockouts . | . . . . Manual 2 | . . 1 1 Terminals 21 | . 9 11 1 Fabricators . | . . . . Repair Stations 6 | . 3 3 . Recycling Units 7 | . 5 2 . Scanalyzers . | . . . . Garrison Access . | . . . . Terminal Hacks 10 | . 4 5 1 Record 2 | . 1 1 . Robot Analysis 1 | . . 1 . Emergency Access Points 1 | . . 1 . Alert Level 2 | . . 1 1 Locate Traps 2 | . 2 . . Dispatch Records 1 | . . 1 . Assault Status 1 | . 1 . . Fabricator Hacks . | . . . . Repair Station Hacks 4 | . 1 3 . Scan Component 2 | . 1 1 . Repair 1 | . . 1 . Refit 1 | . . 1 . Recycling Unit Hacks 4 | . 2 2 . Retrieve Components 4 | . 2 2 . Scanalyzer . | . . . . Garrison Access Hacks . | . . . . Unauthorized Hacks . | . . . . Terminals . | . . . . Fabricators . | . . . . Repair Stations . | . . . . Recycling Units . | . . . . Scanalyzers . | . . . . Garrison Access . | . . . . Data Cores Recovered . | . . . . Used . | . . . . Hacking Detections 10 | . 4 5 1 Full Trace Events 6 | . 3 3 . Feedback Events . | . . . . Feedback Blocked . | . . . . Robot Schematics Acquired . | . . . . Robots Built . | . . . . Authchips . | . . . . Time . | . . . . Total Robot Build Rating . | . . . . Part Schematics Acquired . | . . . . Parts Built . | . . . . Authchips . | . . . . Time . | . . . . Total Part Build Rating . | . . . . Parts Repaired 1 | . . 1 . Time 32 | . . 32 . Parts Recycled . | . . . . Recycled Matter . | . . . . Retrieved Matter . | . . . . Retrieved Components 6 | . 6 . . Parts Scanalyzed . | . . . . Part Schematics Acquired . | . . . . Parts Damaged . | . . . . Bothacking | -11 -10 -9 -8 ------------ Run | Yrd Mat Mat Mat Used RIF Installer . | . . . . Robots Hacked . | . . . . Non-combat . | . . . . Combat . | . . . . Robot Hacks Applied . | . . . . Relay Couplers Released . | . . . . Fabnet Peak Effective % . | . . . . Robots Rewired . | . . . . Allies Hacked . | . . . . Hacks Repelled . | . . . . Allies | -11 -10 -9 -8 -------- Run | Yrd Mat Mat Mat Total Allies . | . . . . Largest Group . | . . . . Highest-Rated Group . | . . . . Highest-Rated Ally . | . . . . Total Orders . | . . . . Ally Attacks . | . . . . Total Damage . | . . . . Kills . | . . . . Allies Corrupted . | . . . . Allies Melted . | . . . . Intel | -11 -10 -9 -8 ------- Run | Yrd Mat Mat Mat Active Infowar (turns) 3118 | . 984 1921 213 Optics 657 | . 657 . . Seismic 2461 | . 327 1921 213 Robot Analysis Total 1 | . . 1 . Derelict Logs Recovered . | . . . . Drone Launches . | . . . . Drone Recoveries . | . . . . Exploration | -11 -10 -9 -8 ------------- Run | Yrd Mat Mat Mat Turns Passed 4868 | 69 1338 3057 404 Spaces Moved 2392 | 47 706 1494 145 Core 41 | 17 21 . 3 Treads 284 | 30 254 . . Legs 2067 | . 431 1494 142 Wheels . | . . . . Hover . | . . . . Flight . | . . . . Fastest Speed 50 | 50 120 120 190 Average Speed 171 | 120 161 173 214 Slowest Speed 400 | 160 200 330 400 Overloaded Moves . | . . . . Propulsion Burnouts . | . . . . Robots Hopped . | . . . . Potential Cave-ins . | . . . . Cave-ins Triggered . | . . . . Exploration Rate (%) 50 | 4 91 84 22 Regions Visited 3 Branch Regions . Pre-discovered Areas . | . . . . Known Exits Taken . | . . . . Unknown Exits Taken 3 | 1 1 1 . Scrap Searched . | . . . . Spaces Dug . | . . . . Terrain Destroyed 215 | . . 74 141 Melee . | . . . . Projectile . | . . . . AOE 215 | . . 74 141 Terrain Rammed . | . . . . Walls Destroyed . | . . . . Machines Disabled . | . . . . Actions | -11 -10 -9 -8 --------- Run | Yrd Mat Mat Mat Total 2836 | 60 803 1790 183 Wait 109 | . 13 96 . Move 2389 | 46 705 1493 145 Hop . | . . . . Pick Up 70 | 8 14 46 2 Fast Attach . | . . . . Attach 31 | 6 4 13 8 Detach 1 | . 1 . . Swap 22 | . 3 18 1 Drop 34 | . 7 26 1 Fire 148 | . 51 81 16 Melee 11 | . . 3 8 Ram 2 | . . . 2 Kick 19 | . 5 14 . Crush . | . . . . Escape Stasis . | . . . . Rewire . | . . . . Trap . | . . . . Miscellaneous . | . . . . Route ------- -11/Scrapyard -10/Materials (discovered 5 exits: *Mat x3 / [*Min] / [*Sub]) -9/Materials (discovered 4 exits: *Mat x2 / [*Min x2]) -8/Materials History --------- Turn | Location | Event 7 | -11/Scrapyard | Discovered new exit (range 14) 70 | -11/Scrapyard | Entered Materials 315 | -10/Materials | Build established: Mutant 352 | -10/Materials | Discovered new exit (range 12) 589 | -10/Materials | Core integrity fell below 50% 808 | -10/Materials | Discovered new exit (range 5) 1098 | -10/Materials | Discovered new exit (range 8) 1141 | -10/Materials | Discovered new exit (range 13) 1193 | -10/Materials | Discovered new exit (range 16) 1408 | -10/Materials | Entered another Materials area 1408 | -9/Materials | Evolved 2 slots: Propulsion x1, Weapon x1 2242 | -9/Materials | Build established: Gunner 2664 | -9/Materials | Discovered new exit (range 9) 2749 | -9/Materials | Discovered new exit (range 9) 2822 | -9/Materials | Repaired Med. Armor Plating? 2866 | -9/Materials | Lost 3 parts (2n1w) 3147 | -9/Materials | Discovered new exit (range 3) 3230 | -9/Materials | Build established: Scavenger-Tank 3729 | -9/Materials | Discovered new exit (range 8) 3854 | -9/Materials | Build established: Gunner 4121 | -9/Materials | Core integrity fell below 50% 4376 | -9/Materials | Build established: Mutant 4465 | -9/Materials | Entered another Materials area 4465 | -8/Materials | Evolved 2 slots: Utility x1, Weapon x1 4751 | -8/Materials | Lost 3 parts (1u2w) 4818 | -8/Materials | Destroyed 7 combat bots 4847 | -8/Materials | Lost 9 parts (2p3n1u3w) 4853 | -8/Materials | Core integrity fell below 50% 4864 | -8/Materials | Core integrity fell below 20% 4869 | -8/Materials | Destroyed by Y-45 Defender with Beam Rifle Last Messages --------------- Missile Launcher destroyed. K-01 Serf cleans the Nuclear Reactor. Sneak attack on K-01 Serf. K-01 Serf suffers critical hit (Smash). Destroyed Sml. Matter Pod. Destroyed Wheel. Destroyed Lgt. Ion Engine. K-01 Serf system corrupted by crushing effect. K-01 Serf destroyed. Aluminum Leg destroyed. Acquired 23 matter. Critical hit (Destroy). Aluminum Leg destroyed. Great Maul destroyed. Slammed into Y-45 Defender. K-01 Serf collects debris. Slammed into Y-45 Defender. Destabilizing: System corrupted (+2). K-01 Serf collects debris. Map ----- +----------------------------------------------------+ | ????????# ??# """ #????????????# # """ | | ????????#!== ??#%/ R" #????????????# # """ | | ? #????#=== ?# """ #????????????# + """ | | ????#=== ?#] ! #????????????# # | | #???# # " = #????????????# # ! | | #### # """ #????????????# # | | # #####+#### ! #????????????# ###### | | ###### ###+##################### #????? | | #????? | | #????? | | #????? | | # # ######################### #????? | | ####### ??????????????????????# #????? | | # ### ## ##??????????????????????# #????? | | # #?#??##???????????????????????? #????? | | # T###?????????????????????????????? #????? | | # ##???????????????????????????????? +????? | | # #???????????????????????????????? #????? | | # #???????????????????????????????? #????? | | # #??????######???????????????????? #????? | | # #?????##!!!!##???????????????????## #????? | | # #?????#! !#????????????????????? #????? | | # #?????# #????????????????????? #????? | | # ####### ###########+#######??? ?????? | | # ^ ????????? | | # Y @ ????????? | | # w k Y ????????? | | # #############;######+######+???????????? | | # #??????????# ????????????????????????? | | # """ #??????????#!!!#???????????????????????? | | # ^""" #??????????#!!!#???????????????????????? | | # """ #??????????#!! #???????????????????????? | | # +??????????# #???????????????????????? | | # #??????????# ! #???????????????????????? | | # ?""" #??????????# #???????????????????????? | | #!?""" #??????????#####???????????????????????? | | ?????" #??????????????????????????????????????? | | ????? #??????????????????????????????????????? | | ????? #??????????????????????????????????????? | | ?????? ???????????????????????????????????????? | | ?????????????????????????????????????????????????? | | ?????????????????????????????????????????????????? | | ?????????????????????????????????????????????????? | | ?????????????????????????????????????????????????? | | ?????????????????????????????????????????????????? | | ?????????????????????????????????????????????????? | | ?????????????????????????????????????????????????? | | ?????????????????????????????????????????????????? | | ?????????????????????????????????????????????????? | | ?????????????????????????????????????????????????? | +----------------------------------------------------+ Best States ------------- Heat Dissipation 31 Energy Generation 14 Energy Capacity 160 Matter Stores 300 Matter Capacity 300 Sight Range 18 Terrain Scan Density 10 Armor Coverage 225 Evasion (%) 55 Recoil Reduction 2 Item Schematics ----------------- None Robot Schematics ------------------ None Fabricated ------------ Nothing Repaired ---------- Med. Armor Plating | 73% | -9/Materials Alien Tech Used ----------------- None Achievements -------------- Part-time Mechanic Challenges ------------ None Game ------ Seed JunkParticleFirepult Manual? 0 Play Time 00:32:53 Cumulative 1.9 hours Start 2025.06.14 @ 02:36:03 End 2025.06.14 @ 03:09:08 Sessions 1 Manual Loads 0 Difficulty Rogue Special Mode None Game No. 7 Rogue 7 Adventurer 0 Explorer 0 Win Type - Total 0 Types 0/0/0/0/0/0/0/0/0/0 Lore% 3 Gallery% 5 Achievement% 8 Wizard Run 0 Options --------- Layout 2 ASCII 0 Keyboard 1 Movement Numpad Keybinds 0 Fullscreen 1 Font 24/Smallcaps Map View 50x44 Zoom Use 0% Tactical HUD 0 Map Filters NONE Filters NONE Steam 1 RUN: 6df21e02-ec15-4cc0-a005-a885d63dacca